Cogmind - Beta 12 @@@ ROGUE MODE // 2024.02.27 @ 22:23:33 Player: lnly rvr shp Result: Destroyed by D-53 Grenadier with Mini Grenade Launcher Performance ------------- Evolutions (0) 0 Regions Visited (2) 400 Robots Destroyed (36) 180 Value Destroyed (749) 749 Prototype IDs (2) 40 Alien Tech Used (0) 0 Bonus (0) 0 TOTAL SCORE: 1369 Bonus ------- None Cogmind --------- Core Integrity 0/250 Matter 300/300 Energy 84/100 System Corruption 2% Temperature Hot (261) Movement Treading (160) Location -10/Mines Parts ------- > --- POWER (1) -------- (None) > --- PROPULSION (2) --- Improved Treads > --- UTILITY (2) ------ Large Storage Unit Structural Scanner > --- WEAPON (2) ------- (None) > --- INVENTORY (15) --- Ion Engine Light Ion Engine Light Ion Engine Light Treads Improved Treads Improved Treads Structural Scanner Small Laser Beam Rifle Beam Rifle Advanced Beam Cannon Datajack Datajack Datajack Peak State ------------ > --- POWER ------------ Ion Engine > --- PROPULSION ------- Improved Treads Improved Treads > --- UTILITY ---------- Large Storage Unit Structural Scanner > --- WEAPON ----------- Beam Rifle Beam Rifle > --- INVENTORY -------- Ion Engine Light Ion Engine Light Ion Engine Light Treads Improved Treads Improved Treads Structural Scanner Small Laser Beam Rifle Beam Rifle Advanced Beam Cannon Datajack Datajack Datajack [Rating: 13] Favorites ----------- Power Ion Engine Engine Ion Engine Propulsion Light Treads Treads Light Treads Utility Structural Scanner Device Structural Scanner Storage Large Storage Unit Processor Signal Interpreter Weapon Beam Rifle Energy Gun Beam Rifle Build | -11 -10 -10 ------- Run | Jun Mat Min Slots Evolved . | . . . Power . | . . . Propulsion . | . . . Utility . | . . . Weapon . | . . . Parts Attached 20 | 6 14 . Power 2 | 1 1 . Engine 2 | 1 1 . Core . | . . . Reactor . | . . . Propulsion 5 | 2 3 . Treads 5 | 2 3 . Leg . | . . . Wheel . | . . . Hover . | . . . Flight . | . . . Utility 7 | 1 6 . Device 3 | . 3 . Storage 2 | 1 1 . Processor 2 | . 2 . Hackware . | . . . Protection . | . . . Artifact . | . . . Weapon 6 | 2 4 . Energy Gun 6 | 2 4 . Energy Cannon . | . . . Ballistic Gun . | . . . Ballistic Cannon . | . . . Launcher . | . . . Special Weapon . | . . . Impact Weapon . | . . . Slashing Weapon . | . . . Piercing Weapon . | . . . Special Melee Weapon . | . . . Unidentified Prototypes . | . . . Parts Lost 6 | . 2 4 Power 1 | . . 1 Propulsion 2 | . 1 1 Utility . | . . . Weapon 3 | . 1 2 Highest Loss Streak 4 | . 1 4 To Critical Strikes . | . . . Average Slot Usage (%) 95 | . 94 99 Engine 13 | . 13 13 Treads 25 | . 25 28 Device 12 | . 12 14 Storage 14 | . 14 14 Processor 1 | . 1 . Energy Gun 25 | . 25 27 Naked Turns . | . . . Heaviest Build 32 | 14 32 32 Greatest Support 46 | 40 46 46 Greatest Overweight (x) 1 | . 1 . Average Overweight (x) . | . . . Largest Inventory Capacity 15 | 8 15 15 Average Capacity 13 | 6 12 15 Most Carried 15 | 5 15 14 Average Carried 9 | 2 8 14 Final Capacity 15 | 8 15 15 Final Carried 14 | 2 14 14 Class Distribution -------------------- 100% | Mutant Dominant Class ---------------- Mutant | -10/Materials Mutant | -10/Mines Resources | -11 -10 -10 ----------- Run | Jun Mat Min Matter Collected 473 | 257 196 20 Remotely . | . . . Salvage Created 1266 | . 1228 38 Parts 73 | . 69 4 Haulers Intercepted 1 | . 1 . Recyclers Shooed 5 | . 5 . Parts Field Recycled . | . . . Retrieved Matter . | . . . Parts Self-Destructed . | . . . Prevented . | . . . Kills | -11 -10 -10 ------- Run | Jun Mat Min Combat Hostiles Destroyed 22 | . 21 1 Guns 19 | . 18 1 AOE 3 | . 3 . Classes Destroyed 9 | . 7 2 Worker 7 | . 7 . Builder 1 | . 1 . Tunneler 1 | . . 1 Hauler 1 | . 1 . Recycler 2 | . 2 . Watcher 3 | . 3 . Swarmer 3 | . 3 . Grunt 18 | . 18 . Assembled 1 | . . 1 Best Kill Streak 4 | . 4 1 Combat Bots Only 3 | . 3 1 Max Kills in Single Turn 3 | . 3 1 Gunslinging . | . . . Exploded 1 | . 1 . Melee . | . . . Uniques/NPCs Destroyed . | . . . Combat | -11 -10 -10 -------- Run | Jun Mat Min Damage Taken 1175 | . 571 604 Core 256 | . 92 164 Absorbed by Shields . | . . . Core Remaining (%) 100 | 100 . . Volleys Fired 89 | . 82 7 Largest 2 | . 2 2 Hottest 112 | . 112 112 Shots Fired 151 | . 137 14 Gun 151 | . 137 14 Cannon . | . . . Launcher . | . . . Special . | . . . Kinetic . | . . . Thermal 133 | . 119 14 Explosive . | . . . Electromagnetic 18 | . 18 . Robot Hit Streak 6 | . 6 3 Robot Miss Streak 4 | . 4 2 Penetration Max . | . . . Secondary Targets 3 | . 2 1 Max Gunslinging Chain 1 | . 1 1 Shots Hit Robots 91 | . 84 7 Core Hits 47 | . 43 4 Critical Kills . | . . . Critical Parts Destroyed . | . . . Critical Strikes 7 | . 6 1 Burn 6 | . 5 1 Corrupt 1 | . 1 . Melee Attacks . | . . . Impact . | . . . Slashing . | . . . Piercing . | . . . Sneak Attacks . | . . . Combat Hostiles . | . . . Follow-up Attacks . | . . . Damage Inflicted 1729 | . 1617 112 Guns 1274 | . 1172 102 Cannons . | . . . Explosions 410 | . 410 . Melee . | . . . Ramming 45 | . 35 10 Kinetic . | . . . Thermal 1518 | . 1416 102 Explosive . | . . . Electromagnetic 166 | . 166 . Impact . | . . . Slashing . | . . . Piercing . | . . . Highest Corruption 2 | . 2 2 Average Corruption 1 | . 1 2 Corruption Purged . | . . . Corruption Blocked . | . . . Effects 32 | . 28 4 Message Errors 10 | . 10 . Matter Fused 10 | . 9 1 Heat Flow Errors 3 | . 2 1 Energy Discharges 4 | . 3 1 Parts Rejected 1 | . 1 . Data Loss (minor) 2 | . 1 1 Misfires 1 | . 1 . Weapon Failures 1 | . 1 . Overload Shots . | . . . Overflow Damage 7 | . 7 . Projectiles . | . . . Explosions 7 | . 7 . Melee . | . . . Knockbacks . | . . . Impact . | . . . Kinetic . | . . . Secondary . | . . . Self-Inflicted Damage 52 | . 52 . Shots 1 | . 1 . Rammed 5 | . 4 1 Targets Rammed 5 | . 4 1 Kicked . | . . . Crushed . | . . . Highest Temperature 463 | . 463 382 Average Temperature 112 | . 104 202 Received Heat Transfer 285 | . 225 60 Effects 5 | . 4 1 Shutdowns 1 | . 1 . Energy Bleed 1 | . . 1 Interference 3 | . 3 . Siege Activations . | . . . Robots Corrupted . | . . . Combat Hostiles . | . . . Parts Fried . | . . . Impact Corruptions . | . . . Robots Melted . | . . . Combat Hostiles . | . . . Parts Melted 8 | . 8 . Heat Transferred 3693 | . 3360 333 Parts Sabotaged . | . . . Parts Stolen . | . . . Parts Stripped . | . . . Power Chain Reactions 4 | . 4 . Missiles Intercepted . | . . . Alert | -11 -10 -10 ------- Run | Jun Mat Min Peak Influence 258 | . 258 20 Initial 15 | . . 15 Average 90 | . 114 8 Maximum Alert Level 1 | . 1 . Low Security (%) 91 | 100 88 100 Level 1 8 | . 11 . Level 2 . | . . . Level 3 . | . . . Level 4 . | . . . Level 5 . | . . . High Security . | . . . Max Security . | . . . Squads Dispatched 6 | . 6 . Investigation 6 | . 6 . Extermination . | . . . Reinforcement . | . . . Assault . | . . . Garrison . | . . . Intercept . | . . . Searches Triggered . | . . . Construction Impeded . | . . . Haulers Reinforced . | . . . Active Scanning Responses . | . . . Cargo Convoy Interrupts . | . . . Stealth | -11 -10 -10 --------- Run | Jun Mat Min Distress Signals 3 | . 3 . Communications Jammed . | . . . Distress Signals . | . . . Times Spotted 50 | . 33 17 Peak Tracking Total 11 | . 7 11 Tactical Retreats 2 | . 2 . Traps | -11 -10 -10 ------- Run | Jun Mat Min Traps Triggered 3 | . 3 . Indirectly . | . . . Trap Hack Attempts . | . . . Triggered . | . . . Disarmed . | . . . Reprogrammed . | . . . Reused . | . . . Traps Extracted . | . . . Installed . | . . . Triggered . | . . . Machines | -11 -10 -10 ---------- Run | Jun Mat Min Machines Disabled . | . . . Max in Single Turn . | . . . Machines Repaired . | . . . Machines Sabotaged . | . . . Overloaded Fab Kills . | . . . Hacking | -11 -10 -10 --------- Run | Jun Mat Min Machines Accessed 8 | . 8 . Terminals 7 | . 7 . Fabricators . | . . . Repair Stations 1 | . 1 . Recycling Units . | . . . Scanalyzers . | . . . Garrison Access . | . . . Total Hacks 37 | . 37 . Successful 22 | . 22 . Failed 15 | . 15 . Catastrophic . | . . . Database Lockouts . | . . . Manual . | . . . Terminals 33 | . 33 . Fabricators . | . . . Repair Stations 4 | . 4 . Recycling Units . | . . . Scanalyzers . | . . . Garrison Access . | . . . Terminal Hacks 21 | . 21 . Record 8 | . 8 . Robot Analysis 2 | . 2 . Prototype ID Bank 1 | . 1 . Emergency Access Points 3 | . 3 . Locate Traps 3 | . 3 . Dispatch Records 1 | . 1 . Maintenance Status 1 | . 1 . Reinforcement Status 1 | . 1 . Zone Layout 1 | . 1 . Fabricator Hacks . | . . . Repair Station Hacks 1 | . 1 . Scan Component 1 | . 1 . Recycling Unit Hacks . | . . . Scanalyzer . | . . . Garrison Access Hacks . | . . . Unauthorized Hacks . | . . . Terminals . | . . . Fabricators . | . . . Repair Stations . | . . . Recycling Units . | . . . Scanalyzers . | . . . Garrison Access . | . . . Data Cores Recovered . | . . . Used . | . . . Hacking Detections 8 | . 8 . Full Trace Events 6 | . 6 . Feedback Events 2 | . 2 . Corruption 2 | . 2 . Feedback Blocked . | . . . Robot Schematics Acquired . | . . . Robots Built . | . . . Authchips . | . . . Time . | . . . Total Robot Build Rating . | . . . Part Schematics Acquired . | . . . Parts Built . | . . . Authchips . | . . . Time . | . . . Total Part Build Rating . | . . . Parts Repaired . | . . . Time . | . . . Parts Recycled . | . . . Recycled Matter . | . . . Retrieved Matter . | . . . Retrieved Components . | . . . Parts Scanalyzed . | . . . Part Schematics Acquired . | . . . Parts Damaged . | . . . Bothacking | -11 -10 -10 ------------ Run | Jun Mat Min Used RIF Installer . | . . . Robots Hacked . | . . . Non-combat . | . . . Combat . | . . . Robot Hacks Applied . | . . . Relay Couplers Released . | . . . Fabnet Peak Effective % . | . . . Robots Rewired . | . . . Allies Hacked . | . . . Hacks Repelled . | . . . Allies | -11 -10 -10 -------- Run | Jun Mat Min Total Allies . | . . . Largest Group . | . . . Highest-Rated Group . | . . . Highest-Rated Ally . | . . . Total Orders . | . . . Ally Attacks . | . . . Total Damage . | . . . Kills . | . . . Allies Corrupted . | . . . Allies Melted . | . . . Intel | -11 -10 -10 ------- Run | Jun Mat Min Robot Analysis Total 2 | . 2 . Derelict Logs Recovered 2 | . . 2 Drone Launches . | . . . Drone Recoveries . | . . . Exploration | -11 -10 -10 ------------- Run | Jun Mat Min Turns Passed 4084 | 130 3166 788 Spaces Moved 2126 | 79 1579 468 Core 8 | 8 . . Treads 2118 | 71 1579 468 Legs . | . . . Wheels . | . . . Hover . | . . . Flight . | . . . Fastest Speed 50 | 50 160 160 Average Speed 167 | 148 170 160 Slowest Speed 240 | 160 240 160 Overloaded Moves . | . . . Propulsion Burnouts . | . . . Robots Hopped . | . . . Cave-ins Triggered . | . . . Exploration Rate (%) 61 | 4 96 83 Regions Visited 2 Branch Regions 1 Pre-discovered Areas . | . . . Known Exits Taken . | . . . Unknown Exits Taken 2 | 1 1 . Scrap Searched . | . . . Spaces Dug . | . . . Terrain Destroyed 11 | . 11 . Melee . | . . . Projectile . | . . . AOE 11 | . 11 . Terrain Rammed . | . . . Walls Destroyed . | . . . Machines Disabled . | . . . Actions | -11 -10 -10 --------- Run | Jun Mat Min Total 2503 | 92 1918 493 Wait 228 | . 211 17 Move 2124 | 78 1578 468 Hop . | . . . Pick Up 30 | 8 22 . Fast Attach . | . . . Attach 14 | 6 8 . Detach 3 | . 3 . Swap 6 | . 6 . Drop 4 | . 4 . Fire 89 | . 82 7 Melee . | . . . Ram . | . . . Kick . | . . . Crush 5 | . 4 1 Escape Stasis . | . . . Rewire . | . . . Trap . | . . . Miscellaneous . | . . . Route ------- -11/Junkyard -10/Materials (discovered 4 exits: *Mat x3 / [*Min]) -10/Mines (discovered 2 exits: *Mat x2) History --------- Turn | Location | Event 5 | -11/Junkyard | Discovered new exit (range 15) 131 | -11/Junkyard | Entered Materials 301 | -10/Materials | Build established: Mutant 345 | -10/Materials | Discovered new exit (range 6) 369 | -10/Materials | Identified exit to Materials 943 | -10/Materials | Discovered exit to Materials (range 10) 2283 | -10/Materials | Discovered new exit (range 6) 2611 | -10/Materials | Discovered exit to Materials (range 13) 3297 | -10/Materials | Entered Mines 3486 | -10/Mines | Learned Materials terminal intel 3557 | -10/Mines | Discovered exit to Materials (range 9) 3890 | -10/Mines | Discovered exit to Materials (range 5) 4046 | -10/Mines | Assembled infested the area 4071 | -10/Mines | Core integrity fell below 50% 4084 | -10/Mines | Core integrity fell below 20% 4085 | -10/Mines | Destroyed by D-53 Grenadier with Mini Grenade Launcher Last Messages --------------- 04062_ as-21815 destroyed. 04062_ as-83228 destroyed. 04062_ Switching to secondary target: as-27763. 04068_ Destroyed Asb. F-torch. 04071_ Overheating: Energy bleed (-35). 04073_ Ion Engine destroyed. 04074_ as-97317 suffers critical hit (Burn). 04075_ as-45603 destroyed. 04076_ as-97317 destroyed. 04077_ K-01 Serf collects debris. 04078_ Beam Rifle destroyed. 04080_ The unstable cave ceiling collapses. 04081_ K-01 Serf collects debris. 04081_ as-46841 destroyed. 04081_ as-98707 destroyed. 04082_ as-71284 destroyed. 04084_ The unstable cave ceiling collapses. 04084_ Imp. Treads destroyed. 04084_ as-14208 destroyed. 04085_ Beam Rifle destroyed. Map ----- +----------------------------------------------------+ | ???????????????????????????????? | | ???????????????????????????????? | | ???????????????????????????????? | | ???????????????????????????????? | | ???????????????????????????????? | | ???????????????????????????????? | | ???????????????????????????????? | | ???????????????????????????????? | | ?????????????????????????????? | | ##????????????? # ?????????????? | | ##???????????## # ????????????? | | ##??????????? # # ????????????? | | ###?????????? # ??????????? | | ####???????? a ??????????? | | ####??????? ! ##????????? | | ####?????? =%= ####??????? | | ####?????? !a ####?????? | | ####??????? a #####???? | | ###???????## a ######?? | | ##???????### #####? | | ## ##????????## ###? | | ### ###????????## ### | | ########????????### ### | | ######??????????#### ## | | ###????????????#### ## | | ##??????????????## @ ## | | ##??????????????## ## | | ##?????????????? # ## | | ###?#######???## ### | | ##############??## d #### | | ####?### ####### #####? | | ##???## ######k ####?? | | ##??### ## d ###???? | | ##?#### # ##???? | | ##?### # ??????? | | ##?## #?????? | | ##### ### ###?????? | | ##### ########## #########?? | | ### ###########%#########?? | | ####??????## ##?? | | ############## ##### ##?? | | ## ############### ##### ##?? | | ### ####?## ##?## ##?? | | ########??## ###########?## ##?? | | #######???## ###########?## ##?? | | ##??????### ##??????????## ##?? | | ##??????### ##??????????## ##?? | | ###??????## ##??????????## ##?? | | ###??????## ###??????????## ##?? | | ##???????## #######??????## ##?? | +----------------------------------------------------+ Best States ------------- Heat Dissipation 25 Energy Generation 10 Energy Capacity 250 Matter Stores 300 Matter Capacity 300 Sight Range 18 Terrain Scan Density 10 Evasion (%) 40 Recoil Reduction 2 Item Schematics ----------------- None Robot Schematics ------------------ None Fabricated ------------ Nothing Alien Tech Used ----------------- None Achievements -------------- None Challenges ------------ None Game ------ Seed MissilePortableFacilitator Manual? 0 Play Time 00:27:53 Cumulative 4.7 hours Start 2024.02.27 @ 21:26:12 End 2024.02.27 @ 22:23:33 Sessions 1 Manual Loads 0 Difficulty Rogue Special Mode None Game No. 8 Rogue 8 Adventurer 0 Explorer 0 Win Type - Total 0 Types 0/0/0/0/0/0/0/0/0 Lore% 3 Gallery% 8 Achievement% 9 Wizard Run 0 Options --------- ASCII 0 Keyboard 1 Movement Arrows Keybinds 0 Fullscreen 1 Font 18/SmallcapsGlow Map View 76x50 Tactical HUD 1 Map Filters NONE Filters NONE Steam 1 RUN: ef1c9ad5-abcd-407c-8a04-13c298959cf8